Cogmind - Beta 15 @@@ ROGUE MODE // 2025.06.07 @ 14:54:11 Player: CheifClapdad Result: Destroyed by H-71 Marshal with Heavy Mass Driver Performance ------------- Evolutions (5) 2500 Regions Visited (7) 1400 Robots Destroyed (126) 630 Value Destroyed (5299) 5299 Prototype IDs (17) 340 Alien Tech Used (0) 0 Bonus (4639) 4639 TOTAL SCORE: 14808 Bonus ------- Triggered High Security 500 High Alert Combat Kills 2289 Follower Combat Kills 864 Entered Garrisons 200 Registered with UFD 300 Met Optimus in HQ 500 Friendly Fire -14 Cogmind --------- Core Integrity 0/1000 Matter 21/300 Energy 99/100 System Corruption 5% Temperature Cool (0) Movement Core (50) Location -5/Factory Parts ------- > --- POWER (1) -------- (None) > --- PROPULSION (4) --- (None) > --- UTILITY (8) ------ (None) > --- WEAPON (4) ------- (None) > --- INVENTORY (5) ---- Light Particle Reactor Experimental Heat Sink Large Storage Unit Matter Compressor (250) Matter Compressor (0) Peak State ------------ > --- POWER ------------ Improved Quantum Reactor > --- PROPULSION ------- Carbon-fiber Leg Improved Thunder Leg Enhanced Biometal Leg Enhanced Biometal Leg > --- UTILITY ---------- Large Storage Unit Matter Compressor Experimental Optical Array Experimental Targeting Computer Experimental Core Analyzer Matter Filter Advanced Kinecellerator Centrium Light Armor Plating > --- WEAPON ----------- Helical Railgun Helical Railgun Heavy Linear Accelerator > --- INVENTORY -------- Light Particle Reactor Light Particle Reactor Armored Heavy Treads Advanced Heavy Treads Experimental Heat Sink Matter Compressor Improved Light Armor Plating Hypervelocity Railgun Hypervelocity Railgun Heavy Flak Cannon Mass Driver Gamma Bomb Array Plasma Cutter [Rating: 135] Favorites ----------- Power Particle Reactor Engine Ion Engine Power Core Nuclear Core Reactor Particle Reactor Propulsion Carbon-fiber Leg Treads Light Treads Leg Carbon-fiber Leg Wheel Wheel Utility Large Storage Unit Device Improved Heat Sink Storage Large Storage Unit Processor Target Analyzer Protection Improved Light Armor Plating Weapon Flak Gun Energy Gun Quantum Rifle Ballistic Gun Flak Gun Ballistic Cannon Heavy Linear Accelerator Launcher Grenade Launcher Special Weapon CPS Tube Build | -11 -10 -10 -10 -8 -6 -6 -5 ------- Run | Yrd Mat Min Sub Scr Fac Gar Fac Slots Evolved 10 | . . . . . 8 . 2 Power . | . . . . . . . . Propulsion 2 | . . . . . 2 . . Utility 6 | . . . . . 4 . 2 Weapon 2 | . . . . . 2 . . Parts Attached 107 | 6 4 . 2 8 23 43 21 Power 11 | 1 . . . 3 . 5 2 Engine 3 | 1 . . . 2 . . . Core 4 | . . . . 1 . 3 . Reactor 4 | . . . . . . 2 2 Propulsion 29 | 2 . . . 2 7 12 6 Treads 7 | 1 . . . 2 2 . 2 Leg 15 | . . . . . . 11 4 Wheel 7 | 1 . . . . 5 1 . Hover . | . . . . . . . . Flight . | . . . . . . . . Utility 32 | 1 2 . . 2 7 11 9 Device 11 | . . . . . 3 3 5 Storage 7 | 1 1 . . 1 2 2 . Processor 6 | . . . . . 2 . 4 Hackware . | . . . . . . . . Protection 8 | . 1 . . 1 . 6 . Artifact . | . . . . . . . . Weapon 35 | 2 2 . 2 1 9 15 4 Energy Gun 2 | . . . . . . 2 . Energy Cannon . | . . . . . . . . Ballistic Gun 18 | 2 2 . . 1 6 5 2 Ballistic Cannon 9 | . . . . . 3 5 1 Launcher 2 | . . . 1 . . . 1 Special Weapon 4 | . . . 1 . . 3 . Impact Weapon . | . . . . . . . . Slashing Weapon . | . . . . . . . . Piercing Weapon . | . . . . . . . . Special Melee Weapon . | . . . . . . . . Unidentified Prototypes 11 | . . . . . 1 1 9 Parts Lost 50 | . . . 1 . 14 14 21 Power 4 | . . . . . 1 1 2 Propulsion 16 | . . . . . 6 4 6 Utility 11 | . . . 1 . 2 4 4 Weapon 19 | . . . . . 5 5 9 Highest Loss Streak 19 | . . . 1 . 4 6 19 To Critical Strikes . | . . . . . . . . Average Backups 11 | 2 7 10 8 11 10 13 10 Power 1 | . 1 1 1 1 3 1 1 Propulsion 1 | 1 1 1 1 1 . 2 1 Utility 2 | . . 3 3 2 1 2 2 Weapon 3 | . 4 5 3 3 3 4 3 Tool/Special . | . . . . . . . . Unused Backups 15 | . 2 . 1 3 . 7 2 Power 4 | . . . . 1 . 3 . Propulsion 1 | . 1 . . . . . . Utility 4 | . . . . 1 . 2 1 Weapon 5 | . 1 . 1 . . 2 1 Tool/Special 1 | . . . . 1 . . . Average Slot Usage (%) 88 | . 94 100 87 92 69 92 79 Engine 3 | . 14 14 14 8 . . . Core 3 | . . . . 5 4 3 . Reactor 1 | . . . . . . 1 4 Treads 6 | . 14 14 14 14 14 . 1 Leg 11 | . . . . . . 21 17 Wheel 5 | . 14 14 14 14 4 1 . Device 3 | . . . . . 3 5 10 Storage 13 | . 14 14 14 14 8 16 9 Processor 4 | . . . . . 3 6 12 Protection 6 | . 8 14 2 6 3 7 5 Ballistic Gun 16 | . 28 28 19 14 14 18 7 Ballistic Cannon 3 | . . . . . 8 4 4 Launcher 3 | . . . 8 14 . . . Peak Build Rating 135 | 6 10 10 10 19 37 90 135 Average Rating 46 | 4 8 10 8 13 28 63 94 On Entrance 22 | . 6 10 10 8 19 37 90 Naked Turns 20 | . . . . . . . 20 Heaviest Build 99 | 13 24 24 24 41 55 93 99 Greatest Support 103 | 20 10 10 10 22 62 73 103 Greatest Overweight (x) 11 | 1 2 2 2 4 11 2 1 Average Overweight (x) 1 | . 1 2 1 2 . . . Largest Inventory Capacity 15 | 8 10 10 10 15 15 15 15 Average Capacity 13 | 7 9 10 10 13 15 15 13 Most Carried 15 | 4 10 10 10 15 14 15 15 Average Carried 12 | 2 7 10 9 12 10 14 12 Final Capacity 15 | 8 10 10 10 15 15 15 5 Final Carried 15 | 4 10 10 10 15 13 15 5 Class Distribution -------------------- 42% | Scavenger-Gunner 28% | Mutant 11% | Scavenger-Tank 7% | Derelict-Mutant 6% | Derelict-Tank Dominant Class ---------------- Mutant | -10/Materials Mutant | -10/Mines Mutant | -10/Subcaves Mutant | -8/Scraptown Derelict-Tank | -6/Factory Scavenger-Gunner | -6/Garrison Scavenger-Gunner | -5/Factory Resources | -11 -10 -10 -10 -8 -6 -6 -5 ----------- Run | Yrd Mat Min Sub Scr Fac Gar Fac Matter Collected 4188 | 215 236 . 166 80 1366 1482 643 Remotely . | . . . . . . . . Salvage Created 5004 | . 266 . 54 . 1606 867 2211 Parts 238 | . 28 . 1 . 68 39 102 Haulers Intercepted 3 | . 1 . . . . . 2 Recyclers Shooed 5 | . . . . . 4 . 1 Parts Field Recycled . | . . . . . . . . Retrieved Matter . | . . . . . . . . Parts Self-Destructed 2 | . . . 2 . . . . Prevented . | . . . . . . . . Kills | -11 -10 -10 -10 -8 -6 -6 -5 ------- Run | Yrd Mat Min Sub Scr Fac Gar Fac Combat Hostiles Destroyed 85 | . 9 . 1 . 17 19 39 Guns 46 | . 9 . 1 . 10 15 11 Cannons 32 | . . . . . 7 4 21 AOE 7 | . . . . . . . 7 Classes Destroyed 21 | . 5 . 1 . 8 3 4 Worker 12 | . . . . . 6 . 6 Builder 7 | . . . . . 2 . 5 Tunneler 2 | . 1 . . . . . 1 Hauler 3 | . 1 . . . . . 2 Recycler 7 | . . . . . 6 . 1 Mechanic 4 | . . . . . 1 . 3 Operator 1 | . . . . . . . 1 Watcher 3 | . 1 . . . . . 2 Swarmer 17 | . 6 . . . 1 . 10 Saboteur 1 | . . . . . . . 1 Grunt 31 | . 3 . . . 8 9 11 Brawler 2 | . . . . . . 2 . Duelist 4 | . . . . . 1 1 2 Protector 1 | . . . . . . . 1 Sentry 6 | . . . . . 1 5 . Demolisher 1 | . . . . . . 1 . Specialist 5 | . . . . . . . 5 Hunter 9 | . . . . . 3 . 6 Programmer 7 | . . . . . 3 1 3 Striker 2 | . . . . . . 2 . Subdweller 1 | . . . 1 . . . . Best Kill Streak 25 | . 4 . 1 . 9 3 25 Combat Bots Only 13 | . 4 . 1 . 3 3 13 Max Kills in Single Turn 7 | . 1 . 1 . 2 1 7 Gunslinging . | . . . . . . . . Exploded 4 | . . . . . . . 4 Melee . | . . . . . . . . Uniques/NPCs Destroyed . | . . . . . . . . Combat | -11 -10 -10 -10 -8 -6 -6 -5 -------- Run | Yrd Mat Min Sub Scr Fac Gar Fac Hostile Shots Fired 1013 | . 34 . 4 . 228 239 508 Missed 314 | . 16 . 1 . 65 78 154 Hits 699 | . 18 . 3 . 163 161 354 Melee 17 | . . . . . 3 10 4 Projectile 682 | . 18 . 3 . 160 151 350 AOE 4 | . . . . . . . 4 Critical Strikes 21 | . . . . . 4 2 15 Damage Taken 11234 | . 151 . 193 . 2241 2221 6428 Core 1487 | . 6 . 38 . 272 106 1065 Absorbed by Shields . | . . . . . . . . Reduced by Siege Mode 338 | . . . . . . . 338 Core Remaining (%) 79 | 100 . . . 82 . 55 . Volleys Fired 254 | . 26 . 6 . 86 70 66 Largest 4 | . 2 . 2 . 4 4 4 Hottest 221 | . 46 . 46 . 120 221 188 Shots Fired 725 | . 52 1 8 . 255 244 165 Gun 526 | . 52 1 8 . 179 202 84 Cannon 185 | . . . . . 76 35 74 Launcher 7 | . . . . . . . 7 Special 7 | . . . . . . 7 . Kinetic 710 | . 52 1 8 . 255 236 158 Thermal 6 | . . . . . . 6 . Explosive . | . . . . . . . . Electromagnetic 7 | . . . . . . . 7 Robot Hit Streak 17 | . 7 . 6 . 12 16 17 Robot Miss Streak 21 | . 5 . 1 . 7 21 5 Penetration Max 2 | . . . . . 1 2 2 Secondary Targets 7 | . 2 . . . . 3 2 Max Gunslinging Chain 1 | . 1 . . . . 1 1 Shots Hit Robots 440 | . 26 . 6 . 150 160 98 Core Hits 402 | . 14 . 2 . 108 146 132 Critical Kills 10 | . . . 1 . 1 1 7 Critical Parts Destroyed 8 | . . . . . 1 . 7 Critical Strikes 28 | . . . 1 . 7 4 16 Destroy 19 | . . . 1 . 2 2 14 Blast 8 | . . . . . 5 1 2 Sever 1 | . . . . . . 1 . Melee Attacks . | . . . . . . . . Impact . | . . . . . . . . Slashing . | . . . . . . . . Piercing . | . . . . . . . . Sneak Attacks . | . . . . . . . . Combat Hostiles . | . . . . . . . . Follow-up Attacks . | . . . . . . . . Damage Inflicted 15048 | . 440 . 91 . 2953 4077 7487 Guns 6382 | . 440 . 91 . 1917 2600 1334 Cannons 5222 | . . . . . 1007 746 3469 Explosions 2786 | . . . . . . 102 2684 Melee . | . . . . . . . . Ramming 625 | . . . . . 29 596 . Kinetic 11604 | . 440 . 91 . 2924 3346 4803 Thermal 1936 | . . . . . . 33 1903 Explosive 102 | . . . . . . 102 . Electromagnetic 781 | . . . . . . . 781 Impact . | . . . . . . . . Slashing . | . . . . . . . . Piercing . | . . . . . . . . Highest Corruption 7 | . 5 5 5 5 1 7 5 Average Corruption 4 | . 3 5 5 5 1 4 2 Corruption Purged . | . . . . . . . . Corruption Blocked . | . . . . . . . . Effects 124 | . 4 5 12 . 2 91 10 Message Errors 32 | . 1 1 2 . 2 23 3 Matter Fused 28 | . . 1 2 . . 24 1 Heat Flow Errors 15 | . . 1 3 . . 10 1 Energy Discharges 10 | . 3 . 1 . . 6 . Data Loss (minor) 19 | . . 1 1 . . 15 2 Data Loss (major) 5 | . . . 3 . . 1 1 Misfires 6 | . . 1 . . . 5 . Alerts 5 | . . . . . . 5 . Weapon Failures 4 | . . . . . . 2 2 Overload Shots . | . . . . . . . . Overflow Damage 444 | . . . . . . 14 430 Projectiles 178 | . . . . . . . 178 Explosions 265 | . . . . . . 13 252 Melee 1 | . . . . . . 1 . Knockbacks 62 | . . . . . 16 14 32 Impact . | . . . . . . . . Kinetic 59 | . . . . . 14 13 32 Secondary 3 | . . . . . 2 1 . Self-Inflicted Damage 14 | . . . . . 14 . . Shots . | . . . . . . . . Rammed 1 | . . . . . 1 . . Targets Rammed 129 | . . . . . 1 128 . Kicked 128 | . . . . . . 128 . Crushed . | . . . . . . . . Highest Temperature 369 | . 6 98 166 . 339 233 369 Average Temperature 105 | . 3 55 67 . 99 88 131 Received Heat Transfer 2377 | . 24 . 6 . 594 339 1414 Effects 10 | . . . . . 4 . 6 Shutdowns 1 | . . . . . . . 1 Energy Bleed 3 | . . . . . 1 . 2 Interference 6 | . . . . . 3 . 3 Siege Activations 1 | . . . . . . . 1 Total Turns 46 | . . . . . . . 46 Longest Duration 46 | . . . . . . . 46 Martial Activations . | . . . . . . . . Shielding Activations . | . . . . . . . . Robots Disrupted . | . . . . . . . . Combat Hostiles . | . . . . . . . . Robots Corrupted 1 | . . . . . . . 1 Combat Hostiles . | . . . . . . . . Parts Fried 2 | . . . . . . . 2 Impact Corruptions 2 | . . . . . . 2 . Robots Melted . | . . . . . . . . Combat Hostiles . | . . . . . . . . Parts Melted 2 | . . . . . . 2 . Heat Transferred 1311 | . . . . . . 111 1200 Parts Sabotaged . | . . . . . . . . Parts Stolen . | . . . . . . . . Parts Stripped . | . . . . . . . . Power Chain Reactions 1 | . . . . . . . 1 Alert | -11 -10 -10 -10 -8 -6 -6 -5 ------- Run | Yrd Mat Min Sub Scr Fac Gar Fac Maximum Alert Level 5 | . . . . . . 5 5 Low Security (%) 29 | 100 100 100 . . 100 5 . Level 1 7 | . . . . . . 13 . Level 2 7 | . . . . . . 13 . Level 3 14 | . . . . . . 24 . Level 4 15 | . . . . . . 13 47 Level 5 20 | . . . . . . 30 21 High Security 4 | . . . . . . . 30 Max Security . | . . . . . . . . Peak Influence 2622 | . 142 36 . . 129 2404 2622 Initial 1262 | . . 36 . . . 89 1262 Average 925 | . 39 11 . . 48 1106 1768 Influence Increases 5188 | . 250 . . . 573 2475 1890 Destroy 0b10 Robot/C 2140 | . 180 . . . 340 680 940 Destroy 0b10 Robot/NC 245 | . 15 . . . 75 5 150 Destroy Leader 324 | . 54 . . . 90 30 150 Allied During Kill 264 | . . . . . . 158 106 Successful Hack 19 | . . . . . 19 . . Disable Machine 255 | . . . . . 15 30 210 Anti-Garrison Action 1500 | . . . . . . 1500 . Destroy Structure 321 | . 1 . . . 4 72 244 Lose Combat Pursuer 120 | . . . . . 30 . 90 Influence Decreases 2576 | . 156 94 . . 445 199 1682 Entered New Map 1239 | . . 58 . . . 39 1142 Time Decay 807 | . 156 36 . . 305 . 310 Lost Part 490 | . . . . . 140 140 210 Lost Ally 40 | . . . . . . 20 20 Squads Dispatched 29 | . 3 . . . 6 . 20 Investigation 1 | . 1 . . . . . . Extermination 2 | . . . . . 2 . . Reinforcement 10 | . 2 . . . 1 . 7 Assault 11 | . . . . . . . 11 Garrison 5 | . . . . . 3 . 2 Intercept . | . . . . . . . . Searches Triggered . | . . . . . . . . Construction Impeded 2 | . . . . . . . 2 Haulers Reinforced 3 | . . . . . 1 . 2 Active Scanning Responses . | . . . . . . . . Cargo Convoy Interrupts 1 | . . . . . . . 1 Stealth | -11 -10 -10 -10 -8 -6 -6 -5 --------- Run | Yrd Mat Min Sub Scr Fac Gar Fac Distress Signals 4 | . . . . . 2 . 2 Communications Jammed . | . . . . . . . . Distress Signals . | . . . . . . . . Times Spotted 170 | . 16 . 4 . 29 33 88 Peak Tracking Total 18 | . 4 . 2 . 7 7 18 Tactical Retreats 5 | . . . . . 2 . 3 Traps | -11 -10 -10 -10 -8 -6 -6 -5 ------- Run | Yrd Mat Min Sub Scr Fac Gar Fac Traps Triggered 20 | . 4 . 2 . 1 7 6 Indirectly 1 | . . . . . . . 1 Trap Hack Attempts . | . . . . . . . . Triggered . | . . . . . . . . Disarmed . | . . . . . . . . Reprogrammed . | . . . . . . . . Reused . | . . . . . . . . Traps Extracted . | . . . . . . . . Installed . | . . . . . . . . Triggered . | . . . . . . . . Machines | -11 -10 -10 -10 -8 -6 -6 -5 ---------- Run | Yrd Mat Min Sub Scr Fac Gar Fac Machines Disabled 23 | . . . . . 1 8 14 Max in Single Turn 4 | . . . . . 1 2 4 Garrison Relay 2 | . . . . . . 2 . Phase Generator 1 | . . . . . . 1 . Machines Repaired . | . . . . . . . . Machines Dismantled 1 | . . . . . . 1 . Machines Sabotaged . | . . . . . . . . Overloaded Fab Kills . | . . . . . . . . Hacking | -11 -10 -10 -10 -8 -6 -6 -5 --------- Run | Yrd Mat Min Sub Scr Fac Gar Fac Machines Accessed 8 | . 1 . . 3 2 2 . Terminals 4 | . 1 . . . 1 2 . Fabricators . | . . . . . . . . Repair Stations . | . . . . . . . . Recycling Units . | . . . . . . . . Scanalyzers . | . . . . . . . . Garrison Access 1 | . . . . . 1 . . Total Hacks 21 | . 6 . . 7 3 5 . Successful 10 | . 1 . . 7 2 . . Failed 11 | . 5 . . . 1 5 . Catastrophic 2 | . 1 . . . . 1 . Database Lockouts . | . . . . . . . . Manual 6 | . 6 . . . . . . Terminals 12 | . 6 . . . 1 5 . Fabricators . | . . . . . . . . Repair Stations . | . . . . . . . . Recycling Units . | . . . . . . . . Scanalyzers . | . . . . . . . . Garrison Access 2 | . . . . . 2 . . Terminal Hacks 8 | . . . . 7 1 . . Record 7 | . . . . 7 . . . Open DSF 1 | . . . . . 1 . . Fabricator Hacks . | . . . . . . . . Repair Station Hacks . | . . . . . . . . Recycling Unit Hacks . | . . . . . . . . Scanalyzer . | . . . . . . . . Garrison Access Hacks 1 | . . . . . 1 . . Unlock Access 1 | . . . . . 1 . . Unauthorized Hacks 1 | . 1 . . . . . . Terminals 1 | . 1 . . . . . . Botnet 1 | . 1 . . . . . . Fabricators . | . . . . . . . . Repair Stations . | . . . . . . . . Recycling Units . | . . . . . . . . Scanalyzers . | . . . . . . . . Garrison Access . | . . . . . . . . Data Cores Recovered . | . . . . . . . . Used . | . . . . . . . . Hacking Detections 5 | . 1 . . . 2 2 . Full Trace Events 2 | . 1 . . . . 1 . Feedback Events . | . . . . . . . . Feedback Blocked . | . . . . . . . . Robot Schematics Acquired . | . . . . . . . . Robots Built . | . . . . . . . . Authchips . | . . . . . . . . Time . | . . . . . . . . Total Robot Build Rating . | . . . . . . . . Part Schematics Acquired . | . . . . . . . . Parts Built . | . . . . . . . . Authchips . | . . . . . . . . Time . | . . . . . . . . Total Part Build Rating . | . . . . . . . . Parts Repaired . | . . . . . . . . Time . | . . . . . . . . Parts Recycled . | . . . . . . . . Recycled Matter . | . . . . . . . . Retrieved Matter . | . . . . . . . . Retrieved Components . | . . . . . . . . Parts Scanalyzed . | . . . . . . . . Part Schematics Acquired . | . . . . . . . . Parts Damaged . | . . . . . . . . Bothacking | -11 -10 -10 -10 -8 -6 -6 -5 ------------ Run | Yrd Mat Min Sub Scr Fac Gar Fac Used RIF Installer . | . . . . . . . . Robots Hacked . | . . . . . . . . Non-combat . | . . . . . . . . Combat . | . . . . . . . . Robot Hacks Applied . | . . . . . . . . Relay Couplers Released 8 | . . . . . . 8 . Machine Destruction 8 | . . . . . . 8 . Fabnet Peak Effective % . | . . . . . . . . Robots Rewired 4 | . . . . . . 4 . Allies Hacked . | . . . . . . . . Hacks Repelled . | . . . . . . . . Allies | -11 -10 -10 -10 -8 -6 -6 -5 -------- Run | Yrd Mat Min Sub Scr Fac Gar Fac Total Allies 5 | . . . . . . 5 . Largest Group 3 | . . . . . . 3 2 Highest-Rated Group 267 | . . . . . . 267 267 Highest-Rated Ally 148 | . . . . . . 148 148 Total Orders . | . . . . . . . . Ally Attacks 91 | . . . . . . 51 40 Total Damage 4485 | . . . . . . 1792 2693 Kills 33 | . . . . . . 15 18 Allies Corrupted . | . . . . . . . . Allies Melted 1 | . . . . . . . 1 Intel | -11 -10 -10 -10 -8 -6 -6 -5 ------- Run | Yrd Mat Min Sub Scr Fac Gar Fac Active Infowar (turns) 437 | . . . . . 3 . 434 Optics 434 | . . . . . . . 434 ECM 3 | . . . . . 3 . . Robot Analysis Total . | . . . . . . . . Derelict Logs Recovered . | . . . . . . . . Drone Launches . | . . . . . . . . Drone Recoveries . | . . . . . . . . Exploration | -11 -10 -10 -10 -8 -6 -6 -5 ------------- Run | Yrd Mat Min Sub Scr Fac Gar Fac Turns Passed 8444 | 99 531 141 432 1580 941 3720 1000 Spaces Moved 5058 | 97 429 87 371 1206 433 1793 642 Core 328 | 10 . . . . 3 . 315 Treads 340 | 3 . . . 41 293 . 3 Legs 1976 | . . . . . . 1652 324 Wheels 2414 | 84 429 87 371 1165 137 141 . Hover . | . . . . . . . . Flight . | . . . . . . . . Fastest Speed 50 | 50 95 110 95 110 80 108 50 Average Speed 134 | 88 101 110 109 129 144 162 108 Slowest Speed 600 | 160 110 110 110 250 600 260 185 Overloaded Moves . | . . . . . . . . Propulsion Burnouts . | . . . . . . . . Robots Hopped . | . . . . . . . . Potential Cave-ins . | . . . . . . . . Cave-ins Triggered . | . . . . . . . . Exploration Rate (%) 33 | 5 59 21 21 51 6 86 20 Regions Visited 7 Branch Regions 3 Pre-discovered Areas . | . . . . . . . . Known Exits Taken 1 | . . . . . 1 . . Unknown Exits Taken 5 | 1 1 1 1 1 . . . Scrap Searched 4 | . . . . 4 . . . Spaces Dug . | . . . . . . . . Terrain Destroyed 123 | . . . . . 4 36 83 Melee . | . . . . . . . . Projectile 47 | . . . . . 4 12 31 AOE 76 | . . . . . . 24 52 Terrain Rammed . | . . . . . . . . Walls Destroyed . | . . . . . . . . Machines Disabled . | . . . . . . . . Actions | -11 -10 -10 -10 -8 -6 -6 -5 --------- Run | Yrd Mat Min Sub Scr Fac Gar Fac Total 6089 | 106 473 132 386 1232 562 2408 790 Wait 279 | . 2 46 . . 8 213 10 Move 5050 | 96 428 86 370 1205 432 1791 642 Hop . | . . . . . . . . Pick Up 58 | 4 8 . 3 10 4 26 3 Fast Attach 55 | 6 1 . 1 2 18 14 13 Attach 33 | . . . . . 7 13 13 Detach 6 | . . . . . . 1 5 Swap 39 | . 3 . 1 6 3 23 3 Drop 78 | . 5 . 5 9 3 41 15 Fire 254 | . 26 . 6 . 86 70 66 Melee . | . . . . . . . . Ram 1 | . . . . . 1 . . Kick 128 | . . . . . . 128 . Crush . | . . . . . . . . Escape Stasis 34 | . . . . . . 14 20 Rewire 66 | . . . . . . 66 . Trap . | . . . . . . . . Miscellaneous 8 | . . . . . . 8 . Route ------- -11/Scrapyard -10/Materials (discovered 3 exits: [*Mat x2] / [*Min]) -10/Mines -10/Subcaves (discovered 2 exits: [*Mat] / *Scr) -8/Scraptown -6/Factory -6/Garrison (discovered 3 exits: [*Fac x3]) -5/Factory (discovered 1 exit: [*Upp]) History --------- Turn | Location | Event 5 | -11/Scrapyard | Discovered new exit (range 13) 100 | -11/Scrapyard | Entered Materials 159 | -10/Materials | Discovered new exit (range 9) 329 | -10/Materials | Build established: Mutant 406 | -10/Materials | Discovered new exit (range 16) 485 | -10/Materials | Discovered new exit (range 12) 631 | -10/Materials | Entered Mines 751 | -10/Mines | Discovered new exit (range 5) 772 | -10/Mines | Entered Subcaves 773 | -10/Subcaves | Approached by a straggling Scientist 792 | -10/Subcaves | Shifting Twisted Machinery released Sub. Beam Cannon 792 | -10/Subcaves | Discovered new exit (range 9) 794 | -10/Subcaves | Shifting Twisted Machinery released Sub. Laser 1204 | -10/Subcaves | Entered Scraptown 1207 | -8/Scraptown | System corruption cleaned by C-Scrubber 1392 | -8/Scraptown | Visited Awakened 1448 | -8/Scraptown | Visited UFD Registry 1452 | -8/Scraptown | Registered with UFD as "Gaussglider" 1469 | -8/Scraptown | Visited The Evicted 1599 | -8/Scraptown | Delivered Scrap Shield to a Scientist 1746 | -8/Scraptown | Visited Scrap Suit Storage 1814 | -8/Scraptown | Received an X-ray algorithm 1836 | -8/Scraptown | Visited A0-MCA Data Center 1845 | -8/Scraptown | Given a B rating by A0-MCA 1852 | -8/Scraptown | Found A0-MCA's Component Scanner 1890 | -8/Scraptown | Visited Junk Cannon Lab 1955 | -8/Scraptown | Visited Infowarlord's Domain 1997 | -8/Scraptown | Visited DA-N13 Charitable Foundation 2013 | -8/Scraptown | Found DCF Scrap (29 items) 2163 | -8/Scraptown | Visited Abandonware Association 2179 | -8/Scraptown | Learned abandonware demo "OVRCLOCK.EXE" 2186 | -8/Scraptown | Learned abandonware demo "POISON.EXE" 2186 | -8/Scraptown | Learned abandonware demo "REBOOT5.EXE" 2243 | -8/Scraptown | Visited Supply Room 2290 | -8/Scraptown | Visited Sword Containment 2416 | -8/Scraptown | Discovered new exit (range 3) 2428 | -8/Scraptown | Build established: Derelict-Mutant 2675 | -8/Scraptown | Met Optimus 2675 | -8/Scraptown | Accepted into 0bPrime 2784 | -8/Scraptown | Entered Factory 2784 | -6/Factory | Evolved 8 slots: Propulsion x2, Utility x4, Weapon x2 2935 | -6/Factory | Identified exit to DSF 3073 | -6/Factory | Build established: Derelict-Tank 3384 | -6/Factory | Garrison activated, responded to threat 3409 | -6/Factory | Lost 3 parts (1n1u1w) 3470 | -6/Factory | Lost 4 parts (2n2w) 3550 | -6/Factory | Lost 4 parts (1p1u2w) 3724 | -6/Factory | Identified exit to Garrison 3725 | -6/Factory | Entered Garrison 3767 | -6/Garrison | Triggered checkpoint 3859 | -6/Garrison | Triggered checkpoint 3926 | -6/Garrison | Build established: Scavenger-Gunner 4143 | -6/Garrison | Rescued a captive Derelict 4175 | -6/Garrison | Triggered checkpoint 4199 | -6/Garrison | Discovered new exit (range 8) 4435 | -6/Garrison | Triggered checkpoint 4435 | -6/Garrison | Triggered checkpoint 4475 | -6/Garrison | Triggered checkpoint 4626 | -6/Garrison | Discovered new exit (range 9) 4697 | -6/Garrison | Spotted B-86 Titan 4714 | -6/Garrison | Allies destroyed B-86 Titan 4835 | -6/Garrison | Rewired B-90 Cyclops 5207 | -6/Garrison | Triggered checkpoint 5280 | -6/Garrison | Garrison Relay disabled 5573 | -6/Garrison | Phase Generator disabled 5608 | -6/Garrison | Discovered new exit (range 7) 5614 | -6/Garrison | Spotted Striker 5614 | -6/Garrison | Spotted Striker 5862 | -6/Garrison | Destroyed Striker 5896 | -6/Garrison | Destroyed Striker 5918 | -6/Garrison | Lost 6 parts (1p2n1u2w) 5988 | -6/Garrison | Rewired Executioner 6300 | -6/Garrison | Triggered checkpoint 6347 | -6/Garrison | Lost 3 parts (2u1w) 6438 | -6/Garrison | Found Gamma Bomb Array 6665 | -6/Garrison | Garrison Relay disabled 6836 | -6/Garrison | Build established: Scavenger-Tank 7091 | -6/Garrison | Attempted to access garrison exit controls, blocked by remote lockdown 7445 | -6/Garrison | Entered Factory 7445 | -5/Factory | Accompanied by 2 allies 7445 | -5/Factory | Evolved 2 slots: Utility x2 7745 | -5/Factory | First assault squad dispatched 7785 | -5/Factory | Build established: Scavenger-Gunner 7893 | -5/Factory | Allies destroyed Executioner 7974 | -5/Factory | Found Prototype Processor 7974 | -5/Factory | Identified Exp. Core Analyzer 7978 | -5/Factory | Found Prototype Processor 7978 | -5/Factory | Identified Exp. Targeting Computer 7989 | -5/Factory | Found Prototype Device 7989 | -5/Factory | Identified Adv. Kinecellerator 8041 | -5/Factory | Garrison activated, responded to threat 8136 | -5/Factory | Cargo convoy interrupted 8136 | -5/Factory | High security lockdown imminent 8154 | -5/Factory | Garrison activated, responded to threat 8172 | -5/Factory | Destroyed 13 combat bots 8216 | -5/Factory | High security lockdown engaged 8280 | -5/Factory | Destroyed 11 combat bots 8298 | -5/Factory | Lost 19 parts (2p4n4u9w) 8436 | -5/Factory | Discovered new exit (range 6) 8439 | -5/Factory | Core integrity fell below 50% 8443 | -5/Factory | Core integrity fell below 20% 8445 | -5/Factory | Destroyed by H-71 Marshal with Heavy Mass Driver Last Messages --------------- 08425_ Exp. Optical Array blown off. 08425_ Exp. Targeting Computer blown off. 08433_ ALERT: Suspicious intruders detected, dispatching Cutter reinforcements to area. 08436_ EXIT=FOUND 08437_ Penetrated by Slug. 08438_ Slug penetrates Wall. 08438_ Knocked back. 08438_ Penetrated by Slug. 08439_ Knocked back. 08439_ C-35 Carver knocked back. 08440_ Knocked back. 08440_ Penetrated by Slug. 08440_ Knocked back. 08440_ C-35 Carver knocked back. 08441_ S-27 Virus destroyed. 08442_ The unstable cave ceiling collapses. 08443_ Penetrated by Slug. 08443_ Knocked back. Map ----- +----------------------------------------------------+ | ?????????????????????????????????????????????????? | | ?????????????????????????????????????????????????? | | ?????????????????????????????????????????????????? | | ?????????????????????????????????????????????????? | | ?????????????????????????????????????????????????? | | ?????????????????????????????????????????????????? | | ?????????????????????????????????????????????????? | | ?????????????????????????????????????????????????? | | ?????????????????????????????????????????????????? | | ?????????????????????????????????????????????????? | | ??????????????????????? ???????????????????????? | | ??????????????????????# ???????????????????????? | | ??????????????????????# ???????????????????????? | | ??????????????????????# ???????????????????????? | | ??????????????????????# ##?????????????????????? | | ??????????????????????# "?????????????????????? | | ??????????????????????# ????????????????????? | | ??????????????????????? """?????? ????????????? | | ??????????????????????? """ ?? #????????????? | | ??????????????????????? """ #????????????? | | ???????????????????????# !! #????????????? | | ???????????????????????# """ !! #????????????? | | ???????????????????????+ """ ! #????????????? | | ???????????????????????# """ +????????????? | | ???????????????????????# % #????????????? | | ???????????????????????# @ #????????????? | | ???????????????????????# #######???????????????? | | ???????????????????????# c #?????##??????????????? | | ???????????????????????# c%#???? ??????????????? | | ???????????????????????# #??? ?????????????? | | ???????????????????????# c #?? ?????????????? | | ???????????????????????# #? ?????????????? | | ??????????????????????## + ?????????????? | | ?????????????????????##c # ???????????? | | ???????????????????### ##??#??????????????? | | ???????????????????# |## #####??????????? | | ???????????????????# ?????????? | | ???????????????????## ?????????? | | ???????????????????# HY ""G??????????? | | ??????????????????## == [" ??????????? | | ??????????????????# [%*% ????????? | | ??????????????????# # ! ????????? | | ??????????????????## # ??????????? | | ???????????????????## # #? """ "???????????? | | ????????????????????## ## ####??"???????????????? | | ?????????????????????## #?##?????????????????????? | | ????####+############## #????????????????????????? | | ##### #????????????????????????? | | # #############????????????????????????? | | """ # #????????????????????????????????????? | +----------------------------------------------------+ Best States ------------- Heat Dissipation 68 Energy Generation 29 Energy Capacity 350 Matter Stores 800 Matter Capacity 800 Sight Range 23 Terrain Scan Density 110 ECM Strength 2 Armor Coverage 600 Evasion (%) 70 Targeting Accuracy 12 Target Analysis 5 Core Analysis 8 Recoil Reduction 4 Matter Filtering 30 Kinecelleration 50 Item Schematics ----------------- None Robot Schematics ------------------ None Fabricated ------------ Nothing Repaired ---------- Nothing Alien Tech Used ----------------- None Achievements -------------- None Challenges ------------ None Game ------ Seed TerrorCryofiberSuite Manual? 0 Play Time 01:28:37 Cumulative 63.3 hours Start 2025.06.07 @ 11:52:35 End 2025.06.07 @ 14:54:11 Sessions 1 Manual Loads 0 Difficulty Rogue Special Mode None Game No. 80 Rogue 80 Adventurer 0 Explorer 0 Win Type - Total 1 Types 1/0/0/0/0/0/0/0/0/0 Lore% 30 Gallery% 42 Achievement% 37 Wizard Run 0 Options --------- Layout 1 ASCII 0 Keyboard 0 Movement Arrows Keybinds 0 Fullscreen 1 Font 24/Smallcaps Map View 50x35 Zoom Use 0% Tactical HUD 1 Map Filters NONE Filters NONE Steam X RUN: 6778e72b-d71e-49e1-8937-02da2f246de3